fUSD/lending_fUSD_20240222
["ID","MTS","AMOUNT","RATE_DAILY","PERIOD"]
[314829284,1708571499828,-500.0,0.00036438,2]
[314829285,1708571499837,-500.0,0.00036438,2]
[314829286,1708571499846,-443.49288994,0.00036438,2]
[314829287,1708571499855,-500.0,0.00036438,2]
[314829288,1708571499864,-741.7,0.00036438,2]
[314829289,1708571499873,-500.0,0.00036438,2]
[314829290,1708571499882,-500.0,0.00036438,2]
[314829291,1708571499891,-500.0,0.00036438,2]
[314829292,1708571499900,-8528.54,0.00036438,2]
[314829293,1708571499910,-295.77,0.00036438,2]
[314829294,1708571499919,-500.0,0.00036438,2]
[314829295,1708571499928,-623.36,0.00036438,2]
[314829296,1708571499937,-500.0,0.00036438,2]
[314829297,1708571499946,-500.0,0.00036438,2]
[314829298,1708571499956,-1233.94,0.00036438,2]
[314829299,1708571499965,-500.0,0.00036438,2]
[314829300,1708571499974,-500.0,0.00036438,2]
[314829301,1708571499983,-901.81,0.00036438,2]
[314829302,1708571499992,-500.0,0.00036438,2]
[314829303,1708571500002,-500.0,0.00036438,2]
[314829304,1708571500011,-500.0,0.00036438,2]
[314829305,1708571500020,-5100.61,0.00036438,2]
[314829306,1708571500029,-1113.67,0.00036438,2]
[314829307,1708571500038,-500.0,0.00036438,2]
[314829308,1708571500048,-2803.13,0.00036438,2]
[314829309,1708571500058,-1443.2,0.00036438,2]
[314829310,1708571500067,-500.0,0.00036438,2]
[314829311,1708571500077,-536.19,0.00036438,2]
[314829312,1708571500086,-1202.93,0.00036438,2]
[314829313,1708571500095,-2348.06,0.00036438,2]
[314829314,1708571500104,-500.0,0.00036438,2]
[314829315,1708571500114,-737.87,0.00036438,2]
[314829316,1708571500123,-500.0,0.00036438,2]
[314829317,1708571500132,-8907.39,0.00036438,2]
[314829318,1708571500141,-4960.05,0.00036438,2]
[314829319,1708571500150,-500.0,0.00036438,2]
[314829320,1708571500160,-500.0,0.00036438,2]
[314829321,1708571500169,-500.0,0.00036438,2]
[314829322,1708571500178,-500.0,0.00036438,2]
[314829323,1708571500187,-1954.58,0.00036438,2]
[314829324,1708571500196,-2953.86,0.00036438,2]
[314829325,1708571500205,-500.0,0.00036438,2]
[314829326,1708571500214,-500.0,0.00036438,2]
[314829327,1708571500223,-500.0,0.00036438,2]
[314829328,1708571500233,-1835.44,0.00036438,2]
[314829329,1708571500242,-16345.74,0.00036438,2]
[314829330,1708571500251,-616.52,0.00036438,2]
[314829331,1708571500260,-1157.87,0.00036438,2]
[314829332,1708571500270,-500.0,0.00036438,2]
[314829333,1708571500279,-500.0,0.00036438,2]
[314829334,1708571500288,-500.0,0.00036438,2]
[314829335,1708571500299,-500.0,0.00036438,2]
[314829336,1708571500308,-500.0,0.00036438,2]
[314829337,1708571500317,-47824.21,0.00036438,2]
[314829338,1708571500326,-500.0,0.00036438,2]
[314829339,1708571500336,-923.19,0.00036438,2]
[314829340,1708571500345,-3063.33,0.00036438,2]
[314829341,1708571500354,-1182.15,0.00036438,2]
[314829342,1708571500363,-500.0,0.00036438,2]
[314829343,1708571500373,-500.0,0.00036438,2]
[314829344,1708571500382,-500.0,0.00036438,2]
[314829345,1708571500393,-11866.0,0.00036438,2]
[314829346,1708571500402,-713.96,0.00036438,2]
[314829347,1708571500412,-500.0,0.00036438,2]
[314829348,1708571500421,-517.9,0.00036438,2]
[314829349,1708571500430,-500.0,0.00036438,2]
[314829350,1708571500440,-500.0,0.00036438,2]
[314829351,1708571500449,-500.0,0.00036438,2]
[314829352,1708571500458,-500.0,0.00036438,2]
[314829353,1708571500468,-2026.69,0.00036438,2]
[314829354,1708571500477,-500.0,0.00036438,2]
[314829355,1708571500487,-956.78,0.00036438,2]
[314829356,1708571500496,-500.0,0.00036438,2]
[314829357,1708571500506,-500.0,0.00036438,2]
[314829358,1708571500515,-16637.24,0.00036438,2]
[314829359,1708571500525,-801.22,0.00036438,2]
[314829360,1708571500534,-500.0,0.00036438,2]
[314829361,1708571500544,-500.0,0.00036438,2]
[314829362,1708571500553,-785.21,0.00036438,2]
[314829363,1708571500562,-500.0,0.00036438,2]
[314829364,1708571500571,-501.67,0.00036438,2]
[314829365,1708571500581,-500.0,0.00036438,2]
[314829366,1708571500591,-617.16,0.00036438,2]
[314829367,1708571500600,-682.86,0.00036438,2]
[314829368,1708571500610,-500.0,0.00036438,2]
[314829369,1708571500623,-809.53,0.00036438,2]
[314829370,1708571500632,-500.0,0.00036438,2]
[314829371,1708571500642,-967.04,0.00036438,2]
[314829372,1708571500651,-1271.42,0.00036438,2]
[314829373,1708571500662,-624.82,0.00036438,2]
[314829374,1708571500671,-500.0,0.00036438,2]
[314829375,1708571500681,-2805.24,0.00036438,2]
[314829376,1708571500691,-500.0,0.00036438,2]
[314829377,1708571500702,-500.0,0.00036438,2]
[314829378,1708571500711,-500.0,0.00036438,2]
[314829379,1708571500719,-774.63,0.00036438,2]
[314829380,1708571500729,-500.0,0.00036438,2]
[314829381,1708571500738,-500.0,0.00036438,2]
[314829382,1708571500747,-500.0,0.00036438,2]
[314829383,1708571500756,-500.0,0.00036438,2]
[314829384,1708571500766,-3102.16,0.00036438,2]
[314829385,1708571500775,-524.46,0.00036438,2]
[314829386,1708571500784,-500.0,0.00036438,2]
[314829387,1708571500793,-500.0,0.00036438,2]
[314829388,1708571500802,-500.0,0.00036438,2]
[314829389,1708571500812,-11105.96,0.00036438,2]
[314829390,1708571500821,-500.0,0.00036438,2]
[314829391,1708571500830,-2885.03,0.00036438,2]
[314829392,1708571500839,-500.0,0.00036438,2]
[314829393,1708571500849,-4523.22,0.00036438,2]
[314829394,1708571500858,-500.0,0.00036438,2]
[314829395,1708571500867,-1384.58,0.00036438,2]
[314829396,1708571500877,-564.24,0.00036438,2]
[314829397,1708571500886,-504.74678903,0.00036438,2]
[314829398,1708571500896,-1558.04,0.00036438,2]
[314829399,1708571500905,-1576.19,0.00036438,2]
[314829400,1708571500914,-4721.11,0.00036438,2]
[314829401,1708571500924,-500.0,0.00036438,2]
[314829402,1708571500933,-5798.22,0.00036438,2]
[314829403,1708571500942,-500.0,0.00036438,2]
[314829404,1708571500951,-500.0,0.00036438,2]
[314829405,1708571500960,-500.0,0.00036438,2]
[314829406,1708571500970,-2471.6,0.00036438,2]
[314829407,1708571500979,-500.0,0.00036438,2]
[314829408,1708571500988,-500.0,0.00036438,2]
[314829409,1708571500997,-502.78,0.00036438,2]
[314829410,1708571501006,-706.81,0.00036438,2]
[314829411,1708571501015,-500.0,0.00036438,2]
[314829412,1708571501024,-22854.05,0.00036438,2]
[314829413,1708571501033,-1839.11,0.00036438,2]
[314829414,1708571501043,-664.12,0.00036438,2]
[314829415,1708571501052,-1851.23,0.00036438,2]
[314829416,1708571501061,-500.0,0.00036438,2]
[314829417,1708571501070,-500.0,0.00036438,2]
[314829418,1708571501079,-500.0,0.00036438,2]
[314829419,1708571501088,-1256.1,0.00036438,2]
[314829420,1708571501097,-500.0,0.00036438,2]
[314829421,1708571501107,-500.0,0.00036438,2]
[314829422,1708571501116,-500.0,0.00036438,2]
[314829423,1708571501125,-2117.58,0.00036438,2]
[314829424,1708571501134,-3618.29,0.00036438,2]
[314829425,1708571501143,-500.0,0.00036438,2]
[314829426,1708571501152,-500.0,0.00036438,2]
[314829427,1708571501161,-3081.23,0.00036438,2]
[314829428,1708571501170,-500.0,0.00036438,2]
[314829429,1708571501179,-955.99,0.00036438,2]
[314829430,1708571501188,-1239.0,0.00036438,2]
[314829431,1708571501197,-500.0,0.00036438,2]
[314829432,1708571501206,-500.0,0.00036438,2]
[314829433,1708571501215,-615.41,0.00036438,2]
[314829434,1708571501225,-2103.9,0.00036438,2]
[314829435,1708571501234,-500.0,0.00036438,2]
[314829436,1708571501243,-664.12,0.00036438,2]
[314829437,1708571501252,-500.0,0.00036438,2]
[314829438,1708571501262,-645.28,0.00036438,2]
[314829439,1708571501271,-500.0,0.00036438,2]
[314829440,1708571501281,-835.19,0.00036438,2]
[314829441,1708571501290,-500.0,0.00036438,2]
[314829442,1708571501300,-7561.17,0.00036438,2]
[314829443,1708571501310,-500.0,0.00036438,2]
[314829444,1708571501319,-15542.27,0.00036438,2]
[314829445,1708571501328,-501.06082522,0.00036438,2]
[314829446,1708571501338,-1190.36,0.00036438,2]
[314829447,1708571501347,-733.12,0.00036438,2]
[314829448,1708571501356,-500.0,0.00036438,2]
[314829449,1708571501365,-500.0,0.00036438,2]
[314829450,1708571501375,-500.0,0.00036438,2]
[314829451,1708571501384,-765.37,0.00036438,2]
[314829452,1708571501394,-2606.07,0.00036438,2]
[314829453,1708571501403,-1764.0,0.00036438,2]
[314829454,1708571501412,-507.81805099,0.00036438,2]
[314829455,1708571501422,-500.0,0.00036438,2]
[314829456,1708571501431,-500.0,0.00036438,2]
[314829457,1708571501441,-509.46,0.00036438,2]
[314829458,1708571501450,-663.24,0.00036438,2]
[314829459,1708571501459,-685.55,0.00036438,2]
[314829460,1708571501469,-2864.15,0.00036438,2]
[314829461,1708571501478,-500.0,0.00036438,2]
[314829462,1708571501487,-500.0,0.00036438,2]
[314829463,1708571501497,-843.54,0.00036438,2]
[314829464,1708571501506,-766.2,0.00036438,2]
[314829465,1708571501516,-500.0,0.00036438,2]
[314829466,1708571501525,-500.0,0.00036438,2]
[314829467,1708571501535,-1751.61,0.00036438,2]
[314829468,1708571501546,-500.0,0.00036438,2]
[314829469,1708571501555,-509.23,0.00036438,2]
[314829470,1708571501564,-14314.79,0.00036438,2]
[314829471,1708571501573,-1775.26,0.00036438,2]
[314829472,1708571501583,-5176.95,0.00036438,2]
[314829473,1708571501592,-1234.77,0.00036438,2]
[314829474,1708571501601,-1756.06,0.00036438,2]
[314829475,1708571501612,-500.0,0.00036438,2]
[314829476,1708571501624,-500.0,0.00036438,2]
[314829477,1708571501633,-2325.19,0.00036438,2]
[314829478,1708571501643,-500.0,0.00036438,2]
[314829479,1708571501652,-542.82,0.00036438,2]
[314829480,1708571501662,-1579.35,0.00036438,2]
[314829481,1708571501670,-828.99,0.00036438,2]
[314829482,1708571501680,-500.0,0.00036438,2]
[314829483,1708571501689,-500.0,0.00036438,2]
[314829484,1708571501700,-1054.4,0.00036438,2]
[314829485,1708571501710,-500.0,0.00036438,2]
[314829486,1708571501719,-922.11,0.00036438,2]
[314829487,1708571501728,-500.0,0.00036438,2]
[314829488,1708571501737,-1005.63,0.00036438,2]
[314829489,1708571501746,-1849.16,0.00036438,2]
[314829490,1708571501755,-821.91,0.00036438,2]
[314829491,1708571501765,-2652.91,0.00036438,2]
[314829492,1708571501774,-306.5990975,0.00036438,2]
[314829493,1708571501783,-7491.62,0.00036438,2]
[314829494,1708571501795,-1020.58,0.00036438,2]
[314829495,1708571501805,-500.0,0.00036438,2]
[314829496,1708571501814,-500.0,0.00036438,2]
[314829497,1708571501823,-500.0,0.00036438,2]
[314829498,1708571501832,-500.0,0.00036438,2]
[314829499,1708571501841,-1517.94,0.00036438,2]
[314829500,1708571501850,-500.0,0.00036438,2]
[314829501,1708571501860,-500.0,0.00036438,2]
[314829502,1708571501869,-3446.09,0.00036438,2]
[314829503,1708571501878,-500.0,0.00036438,2]
[314829504,1708571501887,-776.63,0.00036438,2]
[314829505,1708571501896,-500.0,0.00036438,2]
[314829506,1708571501905,-981.24,0.00036438,2]
[314829507,1708571501915,-500.0,0.00036438,2]
[314829508,1708571501923,-500.0,0.00036438,2]
[314829509,1708571501933,-1416.3,0.00036438,2]
[314829510,1708571501942,-500.0,0.00036438,2]
[314829511,1708571501951,-1668.28,0.00036438,2]
[314829512,1708571501960,-500.0,0.00036438,2]
[314829513,1708571501969,-500.0,0.00036438,2]
[314829514,1708571501979,-1239.99,0.00036438,2]
[314829515,1708571501988,-1753.88,0.00036438,2]
[314829516,1708571501997,-1173.97,0.00036438,2]
[314829517,1708571502006,-3401.61,0.00036438,2]
[314829518,1708571502016,-501.00139738,0.00036438,2]
[314829519,1708571502025,-826.06,0.00036438,2]
[314829520,1708571502035,-500.0,0.00036438,2]
[314829521,1708571502046,-500.0,0.00036438,2]
[314829522,1708571502055,-500.0,0.00036438,2]
[314829523,1708571502064,-500.0,0.00036438,2]
[314829524,1708571502074,-500.0,0.00036438,2]
[314829525,1708571502083,-526.6,0.00036438,2]
[314829526,1708571502092,-1490.35,0.00036438,2]
[314829527,1708571502101,-1732.09,0.00036438,2]
[314829528,1708571502110,-8719.42,0.00036438,2]
[314829529,1708571502119,-970.8,0.00036438,2]
[314829530,1708571502130,-500.0,0.00036438,2]
[314829531,1708571502139,-1041.15,0.00036438,2]
[314829532,1708571502148,-612.06,0.00036438,2]
[314829533,1708571502157,-500.0,0.00036438,2]
[314829534,1708571502167,-500.0,0.00036438,2]
[314829535,1708571502176,-500.0,0.00036438,2]
[314829536,1708571502185,-500.0,0.00036438,2]
[314829537,1708571502195,-8404.87,0.00036438,2]
[314829538,1708571502205,-500.0,0.00036438,2]
[314829539,1708571502214,-500.0,0.00036438,2]
[314829540,1708571502224,-678.34,0.00036438,2]
[314829541,1708571502234,-500.0,0.00036438,2]
[314829542,1708571502243,-500.0,0.00036438,2]
[314829543,1708571502253,-1474.18,0.00036438,2]
[314829544,1708571502262,-556.36,0.00036438,2]
[314829545,1708571502271,-1970.11,0.00036438,2]
[314829546,1708571502281,-500.0,0.00036438,2]
[314829547,1708571502290,-500.0,0.00036438,2]
[314829548,1708571502301,-500.0,0.00036438,2]
[314829549,1708571502310,-981.32,0.00036438,2]
[314829550,1708571502319,-926.78,0.00036438,2]
[314829551,1708571502329,-620.07,0.00036438,2]
[314829552,1708571502339,-500.0,0.00036438,2]
[314829553,1708571502349,-500.0,0.00036438,2]
[314829554,1708571502358,-803.46,0.00036438,2]
[314829555,1708571502367,-493.75085974,0.00036438,2]
[314829556,1708571502377,-20932.1,0.00036438,2]
[314829557,1708571502387,-3642.13,0.00036438,2]
[314829558,1708571502396,-961.82,0.00036438,2]
[314829559,1708571502406,-1831.45,0.00036438,2]
[314829560,1708571502415,-500.0,0.00036438,2]
[314829561,1708571502425,-500.0,0.00036438,2]
[314829562,1708571502434,-500.0,0.00036438,2]
[314829563,1708571502444,-528.91,0.00036438,2]
[314829564,1708571502453,-911.87,0.00036438,2]
[314829565,1708571502463,-1431.54,0.00036438,2]
[314829566,1708571502472,-1653.07,0.00036438,2]
[314829567,1708571502481,-2034.08,0.00036438,2]
[314829568,1708571502491,-601.79,0.00036438,2]
[314829569,1708571502501,-500.0,0.00036438,2]
[314829570,1708571502510,-500.0,0.00036438,2]
[314829571,1708571502520,-1513.56,0.00036438,2]
[314829572,1708571502530,-500.0,0.00036438,2]
[314829573,1708571502540,-500.0,0.00036438,2]
[314829574,1708571502550,-959.25,0.00036438,2]
[314829575,1708571502559,-500.0,0.00036438,2]
[314829576,1708571502568,-500.0,0.00036438,2]
[314829577,1708571502577,-500.0,0.00036438,2]
[314829578,1708571502586,-1014.28,0.00036438,2]
[314829579,1708571502595,-1348.49,0.00036438,2]
[314829580,1708571502604,-960.38,0.00036438,2]
[314829581,1708571502616,-500.0,0.00036438,2]
[314829582,1708571502625,-511.68367901,0.00036438,2]
[314829583,1708571502634,-500.0,0.00036438,2]
[314829584,1708571502643,-654.8,0.00036438,2]
[314829585,1708571502652,-500.0,0.00036438,2]
[314829586,1708571502662,-1129.13,0.00036438,2]
[314829587,1708571502671,-500.0,0.00036438,2]
[314829588,1708571502680,-531.32,0.00036438,2]
[314829589,1708571502690,-690.97,0.00036438,2]
[314829590,1708571502699,-500.0,0.00036438,2]
[314829591,1708571502708,-500.0,0.00036438,2]
[314829592,1708571502717,-881.41,0.00036438,2]
[314829593,1708571502726,-538.3,0.00036438,2]
[314829594,1708571502735,-774.91,0.00036438,2]
[314829595,1708571502812,-6164.58,0.00036438,2]
[314829596,1708571502846,-500.0,0.00036438,2]
[314829597,1708571502855,-1435.52,0.00036438,2]
[314829598,1708571502865,-500.0,0.00036438,2]
[314829599,1708571502874,-3036.4,0.00036438,2]
[314829600,1708571502884,-4067.05,0.00036438,2]
[314829601,1708571502893,-500.0,0.00036438,2]
[314829602,1708571502903,-846.04,0.00036438,2]
[314829603,1708571502912,-500.0,0.00036438,2]
[314829604,1708571502921,-570.75,0.00036438,2]
[314829605,1708571502930,-500.0,0.00036438,2]
[314829606,1708571502940,-500.0,0.00036438,2]
[314829607,1708571502949,-546.83,0.00036438,2]
[314829608,1708571502958,-500.0,0.00036438,2]
[314829609,1708571502967,-1703.61,0.00036438,2]
[314829610,1708571502977,-500.0,0.00036438,2]
[314829611,1708571502986,-3655.72,0.00036438,2]
[314829612,1708571502995,-3469.9467779,0.00036461,2]
[314829613,1708571503862,-1374.3942318,0.00036461,2]
[314829614,1708571503872,-150.0,0.00036485,2]
[314829615,1708571503882,-6000.0,0.0003649,2]
[314829616,1708571503891,-10105.72,0.000365,7]
[314829617,1708571503900,-5262.43,0.000365,7]
[314829618,1708571503909,-8797.54,0.000365,7]
[314829619,1708571503919,-150.0,0.00036504,2]
[314829620,1708571503928,-154.08,0.00036508,2]
[314829621,1708571503938,-150.0,0.00036513,2]
[314829622,1708571503947,-150.282,0.0003653,2]
[314829623,1708571503956,-150.318,0.0003653,2]
[314829624,1708571503966,-150.1,0.0003653,2]
[314829625,1708571503975,-150.0,0.0003653,2]
[314829626,1708571503984,-171.671,0.0003653,2]
[314829627,1708571503993,-249.818,0.0003653,2]
[314829628,1708571504002,-150.263,0.0003653,2]
[314829629,1708571504011,-2704.92,0.0003653,2]
[314829630,1708571504020,-1880.421,0.0003653,2]
[314829631,1708571504029,-1382.272,0.0003653,2]
[314829632,1708571504039,-717.386,0.0003653,2]
[314829633,1708571504047,-961.016,0.0003653,2]
[314829634,1708571504058,-549.336,0.0003653,2]
[314829635,1708571504066,-352.062,0.0003653,2]
[314829636,1708571504076,-1231.0,0.0003653,2]
[314829637,1708571504085,-1987.037,0.0003653,2]
[314829638,1708571504094,-1285.822,0.0003653,2]
[314829639,1708571504103,-158.613,0.0003653,2]
[314829640,1708571504113,-278.263,0.0003653,2]
[314829641,1708571504122,-1031.548,0.0003653,2]
[314829642,1708571504131,-455.045,0.0003653,2]
[314829643,1708571504140,-989.779,0.0003653,2]
[314829644,1708571504149,-2610.038,0.0003653,2]
[314829645,1708571504158,-320.193,0.0003653,2]
[314829646,1708571504167,-1148.037,0.0003653,2]
[314829647,1708571504177,-302.0,0.0003653,2]
[314829648,1708571504186,-338.0,0.0003653,2]
[314829649,1708571504195,-455.0,0.0003653,2]
[314829650,1708571504204,-8180.0,0.0003653,2]
[314829651,1708571504214,-2955.423,0.0003653,2]
[314829652,1708571504223,-19886.0,0.0003653,2]
[314829653,1708571504232,-7500.479,0.0003653,2]
[314829654,1708571504241,-2305.485,0.0003653,2]
[314829655,1708571504250,-4140.262,0.0003653,2]
[314829656,1708571504260,-42663.0,0.0003653,2]
[314829657,1708571504269,-1039.0,0.0003653,2]
[314829658,1708571504279,-8670.75905834,0.00036533,3]
[314829659,1708571504288,-150.0,0.00036562,2]
[314829660,1708571504298,-151.34821307,0.00036576,2]
[314829661,1708571504307,-1000.0,0.000366,7]
[314829662,1708571504316,-1000.0,0.000366,7]
[314829663,1708571504326,-1000.0,0.000366,7]
[314829664,1708571504335,-151.0,0.00036653,4]
[314829665,1708571504345,-352.5860496,0.0003668,30]
[314829666,1708571504355,-150.0,0.00036687,2]
[314829667,1708571504364,-680.63612078,0.00036695,2]
[314829668,1708571504374,-200.0,0.00036695,2]
[314829669,1708571504383,-2000.0,0.00036695,2]
[314829670,1708571504392,-200.0,0.00036695,2]
[314829671,1708571504401,-200.0,0.00036695,2]
[314829672,1708571504411,-150.0,0.00036698,2]
[314829673,1708571504421,-150.0,0.00036711,30]
[314829674,1708571504431,-150.0,0.00036711,30]
[314829675,1708571504441,-150.0,0.00036711,30]
[314829676,1708571504450,-500.0,0.00036712,2]
[314829677,1708571504771,-500.0,0.00036712,2]
[314829678,1708571504782,-500.0,0.00036712,2]
[314829679,1708571504791,-500.0,0.00036712,2]
[314829680,1708571504801,-500.0,0.00036712,2]
[314829681,1708571504810,-500.0,0.00036712,2]
[314829682,1708571504820,-500.0,0.00036712,2]
[314829683,1708571504828,-500.0,0.00036712,2]
[314829684,1708571504838,-629.38,0.00036712,2]
[314829685,1708571504847,-547.95484267,0.00036712,2]
[314829686,1708571504856,-500.0,0.00036712,2]
[314829687,1708571504865,-500.0,0.00036712,2]
[314829688,1708571504874,-513.33581777,0.00036712,2]
[314829689,1708571504884,-500.0,0.00036712,2]
[314829690,1708571504893,-500.0,0.00036712,2]
[314829691,1708571504902,-500.0,0.00036712,2]
[314829692,1708571504911,-500.0,0.00036712,2]
[314829693,1708571504920,-500.0,0.00036712,2]
[314829694,1708571504929,-500.0,0.00036712,2]
[314829695,1708571504939,-500.0,0.00036712,2]
[314829696,1708571504948,-500.0,0.00036712,2]
[314829697,1708571504957,-538.61,0.00036712,2]
[314829698,1708571504966,-500.0,0.00036712,2]
[314829699,1708571504975,-500.0,0.00036712,2]
[314829700,1708571504984,-500.0,0.00036712,2]
[314829701,1708571504993,-500.0,0.00036712,2]
[314829702,1708571505002,-500.0,0.00036712,2]
[314829703,1708571505011,-529.47170333,0.00036712,2]
[314829704,1708571505020,-500.0,0.00036712,2]
[314829705,1708571505030,-500.0,0.00036712,2]
[314829706,1708571505039,-500.0,0.00036712,2]
[314829707,1708571505049,-500.0,0.00036712,2]
[314829708,1708571505059,-500.0,0.00036712,2]
[314829709,1708571505068,-500.0,0.00036712,2]
[314829710,1708571505077,-500.0,0.00036712,2]
[314829711,1708571505087,-500.0,0.00036712,2]
[314829712,1708571505096,-500.0,0.00036712,2]
[314829713,1708571505105,-500.0,0.00036712,2]
[314829714,1708571505114,-500.0,0.00036712,2]
[314829715,1708571505123,-500.0,0.00036712,2]
[314829716,1708571505132,-500.0,0.00036712,2]
[314829717,1708571505142,-500.0,0.00036712,2]
[314829718,1708571505151,-500.0,0.00036712,2]
[314829719,1708571505160,-500.0,0.00036712,2]
[314829720,1708571505169,-500.0,0.00036712,2]
[314829721,1708571505178,-500.0,0.00036712,2]
[314829722,1708571505187,-500.0,0.00036712,2]
[314829723,1708571505196,-500.0,0.00036712,2]
[314829724,1708571505206,-500.0,0.00036712,2]
[314829725,1708571505215,-500.0,0.00036712,2]
[314829726,1708571505224,-500.0,0.00036712,2]
[314829727,1708571505234,-500.0,0.00036712,2]
[314829728,1708571505243,-500.0,0.00036712,2]
[314829729,1708571505253,-500.0,0.00036712,2]
[314829730,1708571505262,-500.0,0.00036712,2]
[314829731,1708571505271,-500.0,0.00036712,2]
[314829732,1708571505280,-500.0,0.00036712,2]
[314829733,1708571505289,-500.0,0.00036712,2]
[314829734,1708571505299,-500.0,0.00036712,2]
[314829735,1708571505308,-500.0,0.00036712,2]
[314829736,1708571505317,-500.0,0.00036712,2]
[314829737,1708571505327,-202.42086054,0.00036712,2]
[314829738,1708571505336,-500.0,0.00036712,2]
[314829739,1708571505346,-500.0,0.00036712,2]
[314829740,1708571505355,-500.0,0.00036712,2]
[314829741,1708571505365,-500.0,0.00036712,2]
[314829742,1708571505374,-500.0,0.00036712,2]
[314829743,1708571505384,-500.0,0.00036712,2]
[314829744,1708571505393,-517.72,0.00036712,2]
[314829745,1708571505403,-500.0,0.00036712,2]
[314829746,1708571505413,-500.0,0.00036712,2]
[314829747,1708571505422,-500.0,0.00036712,2]
[314829748,1708571505431,-500.0,0.00036712,2]
[314829749,1708571505441,-507.94,0.00036712,2]
[314829750,1708571505450,-500.0,0.00036712,2]
[314829751,1708571505459,-559.34,0.00036712,2]
[314829752,1708571505469,-500.0,0.00036712,2]
[314829753,1708571505478,-500.0,0.00036712,2]
[314829754,1708571505487,-500.0,0.00036712,2]
[314829755,1708571505497,-500.0,0.00036712,2]
[314829756,1708571505506,-500.0,0.00036712,2]
[314829757,1708571505515,-500.0,0.00036712,2]
[314829758,1708571505524,-500.0,0.00036712,2]
[314829759,1708571505533,-500.0,0.00036712,2]
[314829760,1708571505542,-500.0,0.00036712,2]
[314829761,1708571505552,-500.0,0.00036712,2]
[314829762,1708571505561,-500.0,0.00036712,2]
[314829763,1708571505571,-500.0,0.00036712,2]
[314829764,1708571505580,-500.0,0.00036712,2]
[314829765,1708571505589,-637.7093793,0.00036712,2]
[314829766,1708571505598,-500.0,0.00036712,2]
[314829767,1708571505607,-500.0,0.00036712,2]
[314829768,1708571505619,-500.0,0.00036712,2]
[314829769,1708571505628,-500.0,0.00036712,2]
[314829770,1708571505637,-533.76514299,0.00036712,2]
[314829771,1708571505646,-500.0,0.00036712,2]
[314829772,1708571505655,-500.0,0.00036712,2]
[314829773,1708571505664,-500.0,0.00036712,2]
[314829774,1708571505673,-500.0,0.00036712,2]
[314829775,1708571505682,-250.0,0.00036712,2]
[314829776,1708571505692,-500.0,0.00036712,2]
[314829777,1708571505701,-500.0,0.00036712,2]
[314829778,1708571505710,-500.0,0.00036712,2]
[314829779,1708571505720,-500.0,0.00036712,2]
[314829780,1708571505729,-500.0,0.00036712,2]
[314829781,1708571505738,-500.0,0.00036712,2]
[314829782,1708571505748,-500.0,0.00036712,2]
[314829783,1708571505758,-500.0,0.00036712,2]